fUST/lending_fUST_20250606
["ID","MTS","AMOUNT","RATE_DAILY","PERIOD"]
[364663642,1749189040973,-3541.7,0.00024365,2]
[364663644,1749189040983,-227.732648,0.00024365,7]
[364663646,1749189040992,-3541.7,0.00024365,2]
[364663648,1749189041002,-3541.7,0.00024365,2]
[364663650,1749189041012,-3541.7,0.00024365,2]
[364663652,1749189041022,-3541.7,0.00024365,2]
[364663654,1749189041031,-3541.7,0.00024365,2]
[364663656,1749189041040,-3541.7,0.00024365,2]
[364663658,1749189041050,-3541.7,0.00024365,2]
[364663660,1749189041060,-3541.7,0.00024365,2]
[364663662,1749189041070,-3541.7,0.00024365,2]
[364663664,1749189041080,-3541.9,0.00024365,2]
[364663666,1749189041090,-151.0,0.00024365,7]
[364663668,1749189041099,-151.0,0.00024365,7]
[364663670,1749189041111,-151.0,0.00024365,7]
[364663672,1749189041125,-151.0,0.00024365,7]
[364663674,1749189041136,-151.0,0.00024365,7]
[364663676,1749189041145,-151.0,0.00024365,7]
[364663677,1749189041156,-151.0,0.00024365,7]
[364663679,1749189041165,-151.0,0.00024365,7]
[364663681,1749189041175,-151.0,0.00024365,7]
[364663683,1749189041184,-151.0,0.00024365,7]
[364663685,1749189041201,-151.0,0.00024365,7]
[364663687,1749189041214,-151.0,0.00024365,7]
[364663689,1749189041223,-296.429636,0.00024365,7]
[364663691,1749189041233,-151.0,0.00024365,7]
[364663693,1749189041242,-151.0,0.00024365,7]
[364663695,1749189041251,-151.0,0.00024365,7]
[364663698,1749189041261,-151.0,0.00024365,7]
[364663700,1749189041271,-151.0,0.00024365,7]
[364663702,1749189041281,-151.0,0.00024365,7]
[364663704,1749189041290,-151.0,0.00024365,7]
[364663706,1749189041300,-151.0,0.00024365,7]
[364663707,1749189041309,-151.0,0.00024365,7]
[364663709,1749189041318,-151.0,0.00024365,7]
[364663711,1749189041328,-151.0,0.00024365,7]
[364663713,1749189041338,-151.0,0.00024365,7]
[364663715,1749189041348,-151.0,0.00024365,7]
[364663717,1749189041358,-151.0,0.00024365,7]
[364663719,1749189041368,-257.49201,0.00024365,7]
[364663721,1749189041378,-151.0,0.00024365,7]
[364663723,1749189041387,-151.721634,0.00024365,7]
[364663725,1749189041396,-154.710064,0.00024365,7]
[364663727,1749189041406,-151.0,0.00024365,7]
[364663729,1749189041416,-151.0,0.00024365,7]
[364663731,1749189041425,-151.0,0.00024365,7]
[364663733,1749189041435,-151.0,0.00024365,7]
[364663734,1749189041444,-151.0,0.00024365,7]
[364663736,1749189041454,-154.831013,0.00024365,7]
[364663738,1749189041464,-160.0,0.00024365,3]
[364663740,1749189041474,-348438.1253582,0.00024366,20]
[364663749,1749189041556,-440.0,0.00023834,2]
[364663751,1749189041566,-4949.53550665,0.00024366,20]
[364663753,1749189041578,-4957.81781365,0.00024366,20]
[364663756,1749189041590,-562.7876311,0.00024366,20]
[364663875,1749189044021,-440.0,0.00022187,2]
[364663876,1749189044032,-440.0,0.00022461,2]
[364663877,1749189044042,-409.80245763,0.00023107,8]
[364663878,1749189044052,-626.99823836,0.00023109,2]
[364663879,1749189044062,-277.53279958,0.00023176,8]
[364663880,1749189044075,-132.26965805,0.00023176,8]
[364663881,1749189044084,-626.99823836,0.00023211,2]
[364663882,1749189044094,-409.80245763,0.00023245,8]
[364663883,1749189044103,-409.80245763,0.00023314,9]
[364663884,1749189044113,-168.76952154,0.00023383,9]
[364663885,1749189044128,-241.03293609,0.00023383,9]
[364663886,1749189044138,-409.80245763,0.00023452,9]
[364663887,1749189044149,-66.14615588,0.00023521,9]
[364663888,1749189044166,-343.65630175,0.00023521,9]
[364663889,1749189044178,-409.80245763,0.0002359,9]
[364663890,1749189044188,-409.80245763,0.00023659,9]
[364663891,1749189044200,-409.80245763,0.00023728,9]
[364663892,1749189044209,-409.80245763,0.00023797,9]
[364663893,1749189044219,-440.0,0.00023831,2]
[364663894,1749189044229,-409.80245763,0.00023866,10]
[364663895,1749189044239,-409.80245763,0.00023934,10]
[364663896,1749189044250,-409.80245763,0.00024003,10]
[364663898,1749189044260,-409.80245763,0.00024072,10]
[364663900,1749189044270,-440.0,0.00024105,2]
[364663902,1749189044279,-221.31042886,0.00024108,2]
[364663904,1749189044289,-409.80245763,0.00024141,10]
[364663906,1749189044299,-409.80245763,0.0002421,10]
[364663908,1749189044310,-409.80245763,0.00024279,10]
[364663910,1749189044320,-409.80245763,0.00024348,11]
[364663911,1749189044330,-99832.47954098,0.00024366,20]
[364663926,1749189046451,-440.0,0.00022735,2]
[364663927,1749189046462,-390.6395,0.00023009,2]
[364663929,1749189256440,-150.0,0.00020367,2]
[364663930,1749189576259,2975.0,0.00024658,120]
[364663931,1749189604989,-150.0,0.0001941,2]
[364663932,1749189605013,-2.58013369,0.0001941,2]
[364663933,1749189608998,-151.0,0.0001941,2]
[364663934,1749189611555,-346.41986631,0.0001941,2]
[364663935,1749189611576,-23.30026268,0.0001941,2]
[364663937,1749189807073,500.0,0.00024658,120]
[364663940,1749189935814,500.0,0.00024658,120]
[364663941,1749189946128,-270.47481053,0.0001941,2]
[364663942,1749189946149,-150.0,0.00019415,2]
[364663943,1749189946169,-293.0281551,0.000209,2]
[364663944,1749189946189,-158.21892332,0.00021521,2]
[364663945,1749189946208,-3550.38571059,0.00022,2]
[364663946,1749189962456,502.0,0.00024658,120]
[364663949,1749190029123,-639.54255754,0.00022,2]
[364663950,1749190036138,-477.61483358,0.00022,2]
[364663955,1749190101160,3036.79,0.00019,2]
[364663959,1749190199667,274.083853,0.00013699,2]
[364664013,1749190232417,-150.0,0.00019454,2]
[364664015,1749190232428,-274.083853,0.00020187,2]
[364664017,1749190232438,-186.915814,0.00021248,2]
[364664019,1749190232448,-783.64012607,0.000219,2]
[364664021,1749190232458,-200.97690194,0.000219,2]
[364664023,1749190232467,-162.68026283,0.00022,2]
[364664032,1749190232555,-1115.51770175,0.00022,2]
[364664042,1749190232704,-2835.56276009,0.00022,2]
[364664043,1749190232715,-300.0,0.00022184,2]
[364664044,1749190232725,-300.0,0.00022186,2]
[364664045,1749190232735,-300.0,0.00022186,2]
[364664047,1749190232746,-160.0,0.00022187,2]
[364664049,1749190232756,-440.0,0.00022187,2]
[364664051,1749190232766,-440.0,0.00022187,2]
[364664053,1749190232776,-430.0,0.00022187,2]
[364664055,1749190232786,-440.0,0.00022187,2]
[364664057,1749190232796,-440.0,0.00022187,2]
[364664059,1749190232806,-2325.53006978,0.00022187,2]
[364664060,1749190232815,-423.83542519,0.00022188,2]
[364664061,1749190232825,-160.0,0.00022188,2]
[364664062,1749190232835,-229.52673067,0.00022188,2]
[364664063,1749190232845,-440.0,0.00022188,2]
[364664064,1749190232855,-440.0,0.00022188,2]
[364664065,1749190232865,-440.0,0.00022188,2]
[364664066,1749190232875,-440.0,0.00022188,2]
[364664067,1749190232885,-326.19704284,0.00022188,2]
[364664068,1749190232895,-468.54610473,0.00022188,2]
[364664069,1749190232905,-379.18287558,0.00022188,2]
[364664070,1749190232914,-440.0,0.00022188,2]
[364664071,1749190232925,-440.0,0.00022188,2]
[364664072,1749190232937,-440.0,0.00022188,2]
[364664073,1749190232947,-440.0,0.00022188,2]
[364664074,1749190232957,-440.0,0.00022188,2]
[364664075,1749190232967,-171.7,0.00022188,2]
[364664076,1749190232977,-440.0,0.00022188,2]
[364664077,1749190232987,-212.976918,0.00022188,2]
[364664078,1749190232997,-163.43924489,0.0002236,2]
[364664079,1749190233006,-192.6235388,0.00022455,2]
[364664080,1749190233016,-495.48,0.00022455,2]
[364664081,1749190233026,-440.0,0.00022455,2]
[364664082,1749190233036,-440.0,0.00022455,2]
[364664083,1749190233045,-440.0,0.00022455,2]
[364664084,1749190233055,-374.14959396,0.00022455,2]
[364664085,1749190233064,-430.0,0.00022455,2]
[364664086,1749190233074,-440.0,0.00022455,2]
[364664087,1749190233084,-440.0,0.00022455,2]
[364664088,1749190233093,-440.0,0.00022455,2]
[364664089,1749190233103,-833.33,0.00022455,2]
[364664090,1749190233115,-440.0,0.00022455,2]
[364664091,1749190233124,-440.0,0.00022455,2]
[364664092,1749190233133,-440.0,0.00022456,2]
[364664093,1749190233143,-430.0,0.00022456,2]
[364664094,1749190233154,-440.0,0.00022456,2]
[364664095,1749190233164,-440.0,0.00022456,2]
[364664096,1749190233174,-440.0,0.00022456,2]
[364664097,1749190233189,-430.0,0.00022456,2]
[364664098,1749190233200,-647.07,0.00022456,2]
[364664099,1749190233210,-500.0,0.00022459,2]
[364664100,1749190233220,-257.95227475,0.00022459,2]
[364664101,1749190233231,-231.10977753,0.00022459,2]
[364664102,1749190233241,-624.66053478,0.00022459,2]
[364664103,1749190233251,-500.0,0.00022459,2]
[364664104,1749190233261,-500.0,0.00022459,2]
[364664105,1749190233272,-500.0,0.00022459,2]
[364664106,1749190233282,-241.96950438,0.00022459,2]
[364664107,1749190233291,-624.66053478,0.00022459,2]
[364664115,1749190233440,-500.0,0.00022459,2]
[364664116,1749190233451,-500.0,0.00022459,2]
[364664117,1749190233461,-500.0,0.00022459,2]
[364664118,1749190233472,-500.0,0.00022459,2]
[364664119,1749190233482,-624.66053478,0.00022459,2]
[364664120,1749190233492,-500.0,0.00022459,2]
[364664121,1749190233502,-500.0,0.00022459,2]
[364664122,1749190233513,-500.0,0.00022459,2]
[364664123,1749190233526,-624.66053478,0.00022459,2]
[364664124,1749190233536,-500.0,0.00022459,2]
[364664125,1749190233546,-500.0,0.00022459,2]
[364664126,1749190233556,-500.0,0.00022459,2]
[364664127,1749190233567,-624.66053478,0.00022459,2]
[364664128,1749190233577,-500.0,0.00022459,2]
[364664129,1749190233587,-500.0,0.00022459,2]
[364664130,1749190233597,-500.0,0.00022459,2]
[364664131,1749190233606,-624.66053478,0.00022459,2]
[364664132,1749190233616,-500.0,0.00022459,2]
[364664133,1749190233626,-500.0,0.00022459,2]
[364664134,1749190233636,-154.28097213,0.00022459,2]
[364664135,1749190233646,-624.66053478,0.00022459,2]
[364664136,1749190233659,-500.0,0.00022459,2]
[364664137,1749190233670,-500.0,0.00022459,2]
[364664138,1749190233681,-624.66053478,0.00022459,2]
[364664139,1749190233691,-440.0,0.0002246,2]
[364664140,1749190233701,-2951.42,0.0002246,2]
[364664141,1749190233711,-440.0,0.0002246,2]
[364664142,1749190233720,-440.0,0.0002246,2]
[364664143,1749190233731,-440.0,0.0002246,2]
[364664144,1749190233741,-430.0,0.0002246,2]
[364664145,1749190233751,-440.0,0.0002246,2]
[364664146,1749190233762,-440.0,0.0002246,2]
[364664147,1749190233772,-440.0,0.0002246,2]
[364664148,1749190233781,-440.0,0.0002246,2]
[364664149,1749190233791,-222.28,0.0002246,2]
[364664150,1749190233800,-440.0,0.0002246,2]
[364664151,1749190233810,-440.0,0.0002246,2]
[364664152,1749190233820,-440.0,0.0002246,2]
[364664153,1749190233829,-440.0,0.0002246,2]
[364664154,1749190233838,-440.0,0.0002246,2]
[364664155,1749190233847,-440.0,0.0002246,2]
[364664156,1749190233857,-440.0,0.0002246,2]
[364664157,1749190233866,-201.42,0.0002246,2]
[364664158,1749190233876,-440.0,0.0002246,2]
[364664159,1749190233886,-500.0,0.0002246,2]
[364664160,1749190233895,-440.0,0.0002246,2]
[364664161,1749190233904,-440.0,0.0002246,2]
[364664162,1749190233913,-156.03,0.0002246,2]
[364664163,1749190233923,-129843.58338,0.0002246,2]
[364664164,1749190233933,-440.0,0.00022461,2]
[364664165,1749190233942,-440.0,0.00022461,2]
[364664166,1749190233951,-440.0,0.00022461,2]
[364664167,1749190233961,-440.0,0.00022461,2]
[364664168,1749190233970,-157.151,0.00022462,2]
[364664169,1749190233980,-425.5,0.00022462,2]
[364664170,1749190233990,-586.42314775,0.00022462,2]
[364664171,1749190234000,-440.0,0.00022462,2]
[364664172,1749190234010,-397.41348155,0.00022462,2]
[364664173,1749190234021,-440.0,0.00022462,2]
[364664174,1749190234030,-440.0,0.00022462,2]
[364664175,1749190234040,-440.0,0.00022462,2]
[364664176,1749190234050,-440.0,0.00022462,2]
[364664177,1749190234060,-440.0,0.00022462,2]
[364664178,1749190234069,-440.0,0.00022462,2]
[364664179,1749190234079,-440.0,0.00022462,2]
[364664180,1749190234089,-440.0,0.00022462,2]
[364664181,1749190234099,-833.33,0.00022463,2]
[364664182,1749190234113,-409.75470627,0.00022473,2]
[364664183,1749190234123,-409.37946243,0.00022558,2]
[364664184,1749190234132,-440.0,0.00022729,2]
[364664185,1749190234142,-420.0,0.00022729,2]
[364664186,1749190234152,-440.0,0.00022729,2]
[364664187,1749190234162,-440.0,0.00022729,2]
[364664188,1749190234172,-440.0,0.00022729,2]
[364664189,1749190234182,-440.0,0.00022729,2]
[364664190,1749190234194,-440.0,0.00022729,2]
[364664191,1749190234203,-440.0,0.00022729,2]
[364664192,1749190234213,-440.0,0.0002273,2]
[364664193,1749190234223,-440.0,0.0002273,2]
[364664194,1749190234233,-440.0,0.0002273,2]
[364664195,1749190234242,-440.0,0.0002273,2]
[364664196,1749190234252,-647.07,0.0002273,2]
[364664197,1749190234262,-440.0,0.00022734,2]
[364664198,1749190234272,-258.19901486,0.00022734,2]
[364664199,1749190234282,-440.0,0.00022734,2]
[364664200,1749190234292,-232.78,0.00022734,2]
[364664201,1749190234302,-218.43,0.00022734,2]
[364664202,1749190234312,-440.0,0.00022734,2]
[364664203,1749190234322,-440.0,0.00022734,2]
[364664204,1749190234332,-440.0,0.00022734,2]
[364664205,1749190234341,-440.0,0.00022734,2]
[364664206,1749190234350,-440.0,0.00022734,2]
[364664207,1749190234360,-440.0,0.00022734,2]
[364664208,1749190234370,-440.0,0.00022734,2]
[364664209,1749190234380,-440.0,0.00022734,2]
[364664210,1749190234390,-490.35979412,0.00022734,2]
[364664211,1749190234400,-440.0,0.00022734,2]
[364664212,1749190234410,-500.0,0.00022734,2]
[364664213,1749190234419,-440.0,0.00022734,2]
[364664214,1749190234429,-440.0,0.00022734,2]
[364664215,1749190234439,-2951.42,0.00022735,2]
[364664216,1749190234449,-440.0,0.00022735,2]
[364664217,1749190234459,-440.0,0.00022735,2]
[364664218,1749190234469,-410.0,0.00022735,2]
[364664219,1749190234479,-318.38,0.00022735,2]
[364664220,1749190234488,-410.0,0.00022736,2]
[364664221,1749190234498,-410.0,0.00022736,2]
[364664222,1749190234508,-410.0,0.00022736,2]
[364664223,1749190234519,-436.7367056,0.00022736,2]
[364664224,1749190234528,-410.0,0.00022736,2]
[364664225,1749190234538,-440.0,0.00022736,2]
[364664226,1749190234549,-440.0,0.00022736,2]
[364664227,1749190234558,-440.0,0.00022736,2]
[364664228,1749190234568,-440.0,0.00022736,2]
[364664229,1749190234577,-500.0,0.00022745,2]
[364664230,1749190234587,-500.0,0.00022755,2]
[364664231,1749190234596,-471.47148591,0.00022757,2]
[364664232,1749190234605,-501.86256634,0.00022757,2]
[364664233,1749190234614,-500.0,0.00022757,2]
[364664234,1749190234624,-503.55132388,0.00022757,2]
[364664235,1749190234633,-423.15508003,0.000229,8]
[364664236,1749190234643,-423.15507996,0.00022969,8]
[364664237,1749190234652,-410.0,0.00023003,2]
[364664238,1749190234661,-410.0,0.00023003,2]
[364664239,1749190234671,-410.0,0.00023003,2]
[364664240,1749190234681,-440.0,0.00023003,2]
[364664241,1749190234690,-410.0,0.00023003,2]
[364664242,1749190234700,-440.0,0.00023003,2]
[364664243,1749190234710,-410.0,0.00023003,2]
[364664244,1749190234719,-413.42,0.00023004,2]
[364664245,1749190234728,-410.0,0.00023004,2]
[364664246,1749190234737,-410.0,0.00023004,2]
[364664247,1749190234746,-410.0,0.00023004,2]
[364664248,1749190234756,-647.07,0.00023004,2]
[364664249,1749190234765,-833.33,0.00023007,2]
[364664250,1749190234774,-440.0,0.00023008,2]
[364664251,1749190234784,-410.0,0.00023008,2]
[364664252,1749190234795,-410.0,0.00023008,2]
[364664253,1749190234805,-410.0,0.00023008,2]
[364664254,1749190234814,-537.57,0.00023008,2]
[364664255,1749190234823,-410.0,0.00023008,2]
[364664256,1749190234833,-460.71021645,0.00023008,2]
[364664257,1749190234842,-440.0,0.00023008,2]
[364664258,1749190234852,-410.0,0.00023008,2]
[364664259,1749190234862,-410.0,0.00023008,2]
[364664260,1749190234871,-410.0,0.00023008,2]
[364664261,1749190234880,-410.0,0.00023008,2]
[364664262,1749190234889,-410.0,0.00023008,2]
[364664263,1749190234899,-440.0,0.00023009,2]
[364664264,1749190234909,-440.0,0.00023009,2]
[364664265,1749190234919,-400.0,0.0002301,2]
[364664266,1749190234928,-440.0,0.0002301,2]
[364664267,1749190234938,-410.0,0.0002301,2]
[364664268,1749190234947,-400.0,0.0002301,2]
[364664269,1749190234957,-423.15507996,0.00023038,8]
[364664270,1749190234966,-833.33,0.00023054,2]
[364664271,1749190234975,-833.33,0.00023054,2]
[364664272,1749190234984,-833.33,0.00023054,2]
[364664273,1749190234994,-833.33,0.00023054,2]
[364664274,1749190235003,-833.33,0.00023055,2]
[364664275,1749190235013,-500.0,0.00023055,2]
[364664276,1749190235023,-442.33931413,0.00023055,2]
[364664277,1749190235032,-500.0,0.00023055,2]
[364664278,1749190235042,-500.0,0.00023055,2]
[364664279,1749190235051,-500.0,0.00023055,2]
[364664280,1749190235060,-500.0,0.00023055,2]
[364664281,1749190235069,-500.0,0.00023055,2]
[364664282,1749190235079,-500.0,0.00023055,2]
[364664283,1749190235088,-500.0,0.00023055,2]
[364664284,1749190235098,-207.4,0.00023055,2]
[364664285,1749190235112,-500.0,0.00023055,2]
[364664286,1749190235121,-500.0,0.00023055,2]
[364664287,1749190235131,-500.0,0.00023055,2]
[364664288,1749190235141,-500.0,0.00023055,2]
[364664289,1749190235150,-500.0,0.00023055,2]
[364664290,1749190235159,-500.0,0.00023055,2]
[364664291,1749190235169,-500.0,0.00023055,2]
[364664292,1749190235180,-500.0,0.00023055,2]
[364664293,1749190235191,-500.0,0.00023055,2]
[364664294,1749190235201,-500.0,0.00023055,2]
[364664295,1749190235211,-500.0,0.00023055,2]
[364664296,1749190235220,-500.0,0.00023055,2]
[364664297,1749190235230,-500.0,0.00023055,2]
[364664298,1749190235240,-500.0,0.00023055,2]
[364664299,1749190235249,-500.0,0.00023055,2]
[364664300,1749190235259,-500.0,0.00023055,2]
[364664301,1749190235269,-500.0,0.00023055,2]
[364664302,1749190235279,-500.0,0.00023055,2]
[364664303,1749190235289,-500.0,0.00023055,2]
[364664304,1749190235299,-500.0,0.00023055,2]
[364664305,1749190235309,-500.0,0.00023055,2]
[364664306,1749190235318,-500.0,0.00023055,2]
[364664307,1749190235328,-423.15507996,0.00023107,8]
[364664308,1749190235338,-423.15507996,0.00023176,8]
[364664309,1749190235348,-150.0,0.000232,2]
[364664310,1749190235359,-423.15507996,0.00023245,8]
[364664311,1749190235368,-440.0,0.00023277,2]
[364664312,1749190235378,-440.0,0.00023277,2]
[364664313,1749190235387,-647.07,0.00023278,2]
[364664314,1749190235397,-440.0,0.00023282,2]
[364664315,1749190235407,-440.0,0.00023282,2]
[364664316,1749190235416,-2951.42,0.00023283,2]
[364664317,1749190235426,-2951.42,0.00023283,2]
[364664318,1749190235437,-2951.42,0.00023283,2]
[364664319,1749190235447,-440.0,0.00023283,2]
[364664320,1749190235457,-440.0,0.00023283,2]
[364664321,1749190235466,-160.0,0.00023283,2]
[364664322,1749190235476,-440.0,0.00023284,2]
[364664323,1749190235486,-423.15507996,0.00023314,9]
[364664324,1749190235496,-423.15507996,0.00023383,9]
[364664325,1749190235506,-300.0,0.00023434,2]
[364664326,1749190235516,-423.15507996,0.00023452,9]
[364664327,1749190235525,-423.15507996,0.00023521,9]
[364664328,1749190235535,-440.0,0.00023551,2]
[364664329,1749190235545,-440.0,0.00023551,2]
[364664330,1749190235555,-647.07,0.00023552,2]
[364664331,1749190235565,-440.0,0.00023556,2]
[364664332,1749190235575,-440.0,0.00023556,2]
[364664333,1749190235584,-2951.42,0.00023557,2]
[364664334,1749190235594,-440.0,0.00023557,2]
[364664335,1749190235603,-428.05315569,0.00023557,2]
[364664336,1749190235613,-440.0,0.00023558,2]
[364664337,1749190235622,-423.15507996,0.0002359,9]
[364664338,1749190235632,-423.15507996,0.00023659,9]
[364664339,1749190235642,-423.15507996,0.00023728,9]
[364664340,1749190235652,-423.15507996,0.00023797,9]
[364664341,1749190235661,-153.88207224,0.00023816,2]
[364664342,1749190235671,-500.0,0.00023816,2]
[364664343,1749190235681,-500.0,0.00023816,2]
[364664344,1749190235691,-500.0,0.00023816,2]
[364664345,1749190235700,-440.0,0.00023825,2]
[364664346,1749190235710,-440.0,0.00023825,2]
[364664347,1749190235720,-647.07,0.00023826,2]
[364664348,1749190235731,-440.0,0.0002383,2]
[364664349,1749190235742,-440.0,0.0002383,2]
[364664350,1749190235752,-440.0,0.00023831,2]
[364664351,1749190235762,-440.0,0.00023832,2]
[364664352,1749190235772,-405.0,0.00023842,2]
[364664353,1749190235783,-500.0,0.00023843,2]
[364664354,1749190235793,-423.15507996,0.00023866,10]
[364664355,1749190235803,-500.0,0.00023871,2]
[364664356,1749190235814,-287.749748,0.00023877,3]
[364664357,1749190235823,-833.33,0.00023897,2]
[364664358,1749190235834,-500.0,0.00023898,2]
[364664359,1749190235843,-500.0,0.00023926,2]
[364664360,1749190235853,-423.15507996,0.00023934,10]
[364664361,1749190235863,-500.0,0.00023953,2]
[364664362,1749190235872,-500.0,0.0002398,2]
[364664363,1749190235882,-1791.0,0.00024,5]
[364664364,1749190235892,-423.15507996,0.00024003,10]
[364664365,1749190235902,-500.0,0.00024008,2]
[364664366,1749190235912,-500.0,0.00024035,2]
[364664367,1749190235921,-500.0,0.00024063,2]
[364664368,1749190235933,-423.15507996,0.00024072,10]
[364664369,1749190235941,-500.0,0.0002409,2]
[364664370,1749190235951,-440.0,0.00024099,2]
[364664371,1749190235960,-440.0,0.00024099,2]
[364664372,1749190235969,-647.07,0.000241,2]
[364664373,1749190235979,-440.0,0.00024104,2]
[364664374,1749190235988,-440.0,0.00024104,2]
[364664375,1749190235998,-420.0,0.00024104,2]
[364664376,1749190236008,-440.0,0.00024105,2]
[364664377,1749190236018,-440.0,0.00024106,2]
[364664378,1749190236027,-150.99999999,0.00024108,2]
[364664379,1749190236037,-275.43614523,0.00024117,2]
[364664380,1749190236047,-423.15507996,0.00024141,10]
[364664381,1749190236057,-423.15507996,0.0002421,10]
[364664382,1749190236066,-2951.42,0.00024259,2]
[364664383,1749190236077,-833.33,0.00024259,2]
[364664384,1749190236086,-2704.0,0.0002426,2]
[364664385,1749190236096,-2704.0,0.0002426,2]
[364664386,1749190236109,-163.43924488,0.00024277,2]
[364664387,1749190236119,-423.15507996,0.00024279,10]
[364664388,1749190236129,-182.94440693,0.00024285,2]
[364664389,1749190236138,-2000.0,0.000243,2]
[364664390,1749190236148,-151.0,0.000243,10]
[364664391,1749190236159,-151.0,0.000243,5]
[364664392,1749190236169,-765.16,0.000243,2]
[364664393,1749190236179,-150.0,0.000243,5]
[364664394,1749190236188,-150.0,0.00024332,2]
[364664395,1749190236198,-423.15507996,0.00024348,11]
[364664396,1749190236298,-2951.42,0.0002435,2]
[364664397,1749190236308,-2951.42,0.00024365,2]
[364664398,1749190236318,-440.0,0.00024365,2]
[364664399,1749190236328,-423.83542519,0.00024366,3]
[364664400,1749190236337,-151.0,0.00024366,7]
[364664401,1749190236347,-153.523669,0.00024366,7]
[364664402,1749190236357,-151.0,0.00024366,7]
[364664403,1749190236367,-152.747616,0.00024366,7]
[364664404,1749190236377,-2951.42,0.00024366,2]
[364664405,1749190236386,-2951.42,0.00024366,2]
[364664406,1749190236397,-2951.42,0.00024366,2]
[364664407,1749190236406,-2951.42,0.00024366,2]
[364664408,1749190236416,-2951.42,0.00024366,2]
[364664409,1749190236426,-2951.42,0.00024366,2]
[364664410,1749190236436,-2951.42,0.00024366,2]
[364664411,1749190236446,-2951.42,0.00024366,2]
[364664412,1749190236457,-2951.42,0.00024366,2]
[364664413,1749190236467,-2951.42,0.00024366,2]
[364664414,1749190236476,-2951.42,0.00024366,2]
[364664415,1749190236486,-2951.42,0.00024366,2]
[364664416,1749190236496,-2951.42,0.00024366,2]
[364664417,1749190236506,-2951.42,0.00024366,2]
[364664418,1749190236516,-2951.54,0.00024366,2]
[364664419,1749190236526,-229.52673067,0.00024367,3]
[364664420,1749190236535,-227.732648,0.00024367,7]
[364664421,1749190236545,-151.0,0.00024367,7]
[364664422,1749190236555,-151.0,0.00024367,7]
[364664423,1749190236564,-151.0,0.00024367,7]
[364664424,1749190236573,-151.0,0.00024367,7]
[364664425,1749190236583,-151.0,0.00024367,7]
[364664426,1749190236593,-151.0,0.00024367,7]
[364664427,1749190236603,-151.0,0.00024367,7]
[364664428,1749190236613,-151.0,0.00024367,7]
[364664429,1749190236624,-151.0,0.00024367,7]
[364664430,1749190236635,-151.0,0.00024367,7]
[364664431,1749190236645,-151.0,0.00024367,7]
[364664432,1749190236655,-151.0,0.00024367,7]
[364664433,1749190236665,-151.0,0.00024367,7]
[364664434,1749190236676,-151.0,0.00024367,7]
[364664435,1749190236687,-257.49201,0.00024367,7]
[364664436,1749190236697,-151.0,0.00024367,7]
[364664437,1749190236708,-151.0,0.00024367,7]
[364664438,1749190236718,-151.0,0.00024367,7]
[364664439,1749190236727,-151.0,0.00024367,7]
[364664440,1749190236737,-151.0,0.00024367,7]
[364664441,1749190236746,-151.0,0.00024367,7]
[364664442,1749190236758,-151.0,0.00024367,7]